bitfinex/quotes_BTCUSD_20230114
["timestamp","ask_amount","ask_price","bid_price","bid_amount"]
[1673682591730,0.70128909,20911.0,20909.0,0.33190141]
[1673682591988,0.70128909,20911.0,20908.0,0.8342377]
[1673682592230,0.14619371,20910.0,20908.0,0.62066731]
[1673682592510,0.30429538,20910.0,20906.0,0.8342797]
[1673682592739,0.1275,20910.0,20906.0,0.14238431]
[1673682592988,0.1275,20910.0,20906.0,0.3559547]
[1673682593297,0.28221019,20910.0,20909.0,0.16]
[1673682593490,0.31554264,20910.0,20909.0,0.16]
[1673682594527,0.31554264,20910.0,20909.0,0.3]
[1673682596749,0.70097159,20910.0,20909.0,0.3]
[1673682596985,0.51209,20910.0,20909.0,0.3]
[1673682597480,0.38906096,20910.0,20909.0,0.3]
[1673682597971,0.68906096,20910.0,20909.0,0.3]
[1673682598228,0.51209,20910.0,20909.0,0.3]
[1673682598489,0.6816378,20910.0,20909.0,0.3]
[1673682598983,0.21209,20910.0,20909.0,0.3]
[1673682599234,0.51209,20910.0,20909.0,0.3]
[1673682599496,1.91529961,20910.0,20909.0,0.3]
[1673682599986,1.67645916,20910.0,20909.0,0.3]
[1673682600235,1.16215916,20910.0,20909.0,0.3]
[1673682601255,1.43050961,20910.0,20909.0,0.3]
[1673682601500,0.96744232,20910.0,20909.0,0.3]
[1673682601761,0.96744232,20910.0,20909.0,0.299179]
[1673682602269,0.78920961,20910.0,20909.0,0.299179]
[1673682602767,1.28951285,20910.0,20909.0,0.299179]
[1673682603026,1.68920961,20910.0,20909.0,0.299179]
[1673682603354,2.5721578,20910.0,20909.0,0.299179]
[1673682603532,2.90174357,20910.0,20909.0,0.299179]
[1673682603826,1.73070961,20910.0,20909.0,0.299179]
[1673682604047,1.62086073,20910.0,20909.0,0.299179]
[1673682604290,1.62086073,20910.0,20909.0,0.159179]
[1673682604781,1.62886073,20910.0,20909.0,0.169179]
[1673682605854,1.92886073,20910.0,20909.0,0.169179]
[1673682606052,1.73870961,20910.0,20909.0,0.169179]
[1673682606300,1.88217249,20910.0,20909.0,0.169179]
[1673682606554,1.73870961,20910.0,20909.0,0.169179]
[1673682607616,1.09720961,20910.0,20909.0,0.169179]
[1673682608595,1.27390077,20910.0,20909.0,0.169179]
[1673682609613,0.97390077,20910.0,20909.0,0.169179]
[1673682609849,1.2386578,20910.0,20909.0,0.169179]
[1673682610369,2.19271826,20910.0,20909.0,0.169179]
[1673682610618,2.14484865,20910.0,20909.0,0.169179]
[1673682610908,2.18681441,20910.0,20909.0,0.169179]
[1673682611105,1.70857441,20910.0,20909.0,0.169179]
[1673682611352,3.28124535,20910.0,20902.0,0.01287493]
[1673682611610,0.2121,20903.0,20902.0,0.3848093]
[1673682611854,0.12751,20903.0,20902.0,0.19408335]
[1673682612088,0.13601,20903.0,20902.0,0.19408335]
[1673682612826,0.13601,20903.0,20902.0,0.15187493]
[1673682613078,0.33276087,20903.0,20902.0,0.01287493]
[1673682613328,0.30674228,20903.0,20902.0,0.01287493]
[1673682614059,0.22315228,20903.0,20902.0,0.15187493]
[1673682614328,0.1293,20903.0,20902.0,0.15187493]
[1673682614808,0.29855586,20903.0,20902.0,0.15187493]
[1673682615047,0.77695586,20903.0,20902.0,0.15187493]
[1673682615295,0.78545586,20903.0,20902.0,0.15187493]
[1673682615811,1.08545586,20903.0,20902.0,0.15187493]
[1673682616296,0.78545586,20903.0,20902.0,0.15187493]
[1673682617792,0.29855586,20903.0,20902.0,0.15187493]
[1673682618288,0.1293,20903.0,20902.0,0.15187493]
[1673682618629,0.001,20903.0,20902.0,0.30458293]
[1673682622362,0.001,20903.0,20902.0,0.31187493]
[1673682622621,0.16874639,20903.0,20902.0,0.31187493]
[1673682623417,0.16874639,20903.0,20902.0,0.15187493]
[1673682625668,0.001,20903.0,20902.0,0.15187493]
[1673682625955,0.001,20903.0,20902.0,0.29847077]
[1673682626168,1.1983226,20907.0,20902.0,0.29847077]
[1673682626443,0.03122166,20906.0,20903.0,0.19072595]
[1673682626682,0.03122166,20906.0,20902.0,0.34260088]
[1673682626683,0.478332,20906.0,20902.0,0.34260088]
[1673682626934,0.1271,20904.0,20902.0,0.15187493]
[1673682627181,0.1271,20904.0,20902.0,0.01287493]
[1673682627430,0.1271,20904.0,20902.0,0.15187493]
[1673682627920,0.2271,20904.0,20902.0,0.15187493]
[1673682628174,0.3,20903.0,20902.0,0.15187493]
[1673682628672,0.41651002,20903.0,20902.0,0.01287493]
[1673682628922,0.51651002,20903.0,20902.0,0.01287493]
[1673682629413,0.41851002,20903.0,20902.0,0.15187493]
[1673682631167,0.51851002,20903.0,20902.0,0.15187493]
[1673682631412,1.23514098,20903.0,20902.0,0.15187493]
[1673682632225,1.44866745,20903.0,20902.0,0.15187493]
[1673682632720,1.47776241,20903.0,20902.0,0.15187493]
[1673682632971,1.44866745,20903.0,20902.0,0.15187493]
[1673682633226,1.23514098,20903.0,20902.0,0.15187493]
[1673682633540,1.26554531,20903.0,20902.0,0.15187493]
[1673682634491,1.34866745,20903.0,20902.0,0.15187493]
[1673682635242,1.42209565,20903.0,20902.0,0.15187493]
[1673682635490,1.27974467,20903.0,20902.0,0.15187493]
[1673682635741,1.42235087,20903.0,20902.0,0.15187493]
[1673682636042,1.21481647,20903.0,20902.0,0.15187493]
[1673682636559,1.31481647,20903.0,20902.0,0.15187493]
[1673682636821,1.56120852,20903.0,20902.0,0.15187493]
[1673682637082,1.91763836,20903.0,20902.0,0.15187493]
[1673682637365,1.56120852,20903.0,20902.0,0.15187493]
[1673682638139,1.55920852,20903.0,20902.0,0.01287493]
[1673682638392,1.97637212,20903.0,20902.0,0.08587493]
[1673682638947,2.61737212,20903.0,20902.0,0.06536493]
[1673682639210,3.04326864,20903.0,20902.0,0.06536493]
[1673682639457,2.38816313,20903.0,20902.0,0.06536493]
[1673682639710,1.96226661,20903.0,20902.0,0.06536493]
[1673682639977,1.96226661,20903.0,20902.0,0.04485493]
[1673682641017,1.96226661,20903.0,20902.0,0.02434493]
[1673682643162,2.31820541,20903.0,20902.0,0.02434493]
[1673682644668,2.79230758,20903.0,20902.0,0.02434493]
[1673682644941,2.43636878,20903.0,20902.0,0.02434493]
[1673682645183,2.79227931,20903.0,20902.0,0.02434493]
[1673682645913,3.269481,20903.0,20902.0,0.02434493]
[1673682646164,3.49442442,20903.0,20902.0,0.02434493]
[1673682646416,3.49442442,20903.0,20898.0,0.33904493]
[1673682646417,0.1,20902.0,20898.0,0.33904493]
[1673682646676,0.4283,20899.0,20898.0,0.33904493]
[1673682646969,1.89655958,20899.0,20898.0,0.33904493]
[1673682647206,1.90505958,20899.0,20898.0,0.33904493]
[1673682647691,1.90505958,20899.0,20898.0,0.41904493]
[1673682648165,1.90505958,20899.0,20898.0,0.33904493]
[1673682648657,2.099873,20899.0,20898.0,0.33904493]
[1673682648895,2.59033428,20899.0,20898.0,0.33904493]
[1673682649152,2.15224126,20899.0,20898.0,0.41304493]
[1673682649390,1.999873,20899.0,20898.0,0.33904493]
[1673682649638,2.48089454,20899.0,20898.0,0.41304493]
[1673682649878,1.871573,20899.0,20898.0,0.33904493]
[1673682650133,2.02494126,20899.0,20898.0,0.41304493]
[1673682650630,2.08597474,20899.0,20898.0,0.41304493]
[1673682650876,2.05864031,20899.0,20898.0,0.41304493]
[1673682651120,1.91627205,20899.0,20898.0,0.41304493]
[1673682651373,1.78867205,20899.0,20898.0,0.41304493]
[1673682652112,1.48867205,20899.0,20898.0,0.41304493]
[1673682652354,1.24969627,20899.0,20898.0,0.41304493]
[1673682653610,1.54969627,20899.0,20898.0,0.41304493]
[1673682654593,1.24969627,20899.0,20898.0,0.41304493]
[1673682655055,1.54969627,20899.0,20898.0,0.41304493]
[1673682656333,1.51599722,20899.0,20898.0,0.41304493]
[1673682656641,1.54540462,20899.0,20898.0,0.41304493]
[1673682661245,1.68777288,20899.0,20898.0,0.41304493]
[1673682662692,1.54540462,20899.0,20898.0,0.41304493]
[1673682662982,0.25051522,20899.0,20898.0,0.59322729]
[1673682663231,0.011,20899.0,20898.0,0.59322729]
[1673682665528,0.62081826,20901.0,20898.0,0.41304493]
[1673682665774,0.97671691,20902.0,20898.0,0.60377088]
[1673682665775,0.14236826,20902.0,20898.0,0.60377088]
[1673682666007,0.86256456,20903.0,20899.0,0.18611216]
[1673682666293,0.86256456,20903.0,20899.0,0.37683811]
[1673682666811,0.38414856,20903.0,20899.0,0.37683811]
[1673682667025,0.15436826,20902.0,20899.0,0.37683811]
[1673682667276,0.15436826,20902.0,20899.0,0.18611216]
[1673682667758,0.012,20902.0,20899.0,0.18611216]
[1673682668255,1.11903205,20904.0,20901.0,0.1283]
[1673682668256,0.14236826,20904.0,20901.0,0.1283]
[1673682668507,0.007,20903.0,20901.0,0.31902595]
[1673682668743,0.14236826,20904.0,20900.0,0.578453]
[1673682668983,0.007,20902.0,20900.0,0.76917895]
[1673682669227,0.17242029,20904.0,20900.0,0.478453]
[1673682669485,0.081,20903.0,20901.0,0.008]
[1673682669728,0.17242029,20904.0,20900.0,0.66917895]
[1673682669981,0.008,20902.0,20900.0,0.479453]
[1673682670234,0.17242029,20904.0,20900.0,0.478453]
[1673682670487,0.081,20903.0,20901.0,0.008]
[1673682670975,0.081,20903.0,20902.0,0.1430869]
[1673682671495,0.38574199,20905.0,20902.0,0.1430869]
[1673682671737,0.018,20902.0,20901.0,0.18744415]
[1673682671968,0.018,20902.0,20900.0,0.14463117]
[1673682672209,0.018,20902.0,20900.0,0.62308417]
[1673682672463,0.16806006,20904.0,20900.0,0.62308417]
[1673682672718,0.14848578,20903.0,20902.0,0.007]
[1673682672989,0.14848578,20903.0,20900.0,0.62308417]
[1673682673233,0.14848578,20903.0,20900.0,0.62508417]
[1673682673234,0.018,20902.0,20900.0,0.62508417]
[1673682673498,0.018,20902.0,20900.0,0.62308417]
[1673682673733,0.018,20902.0,20901.0,0.49417167]
[1673682674223,0.01422,20902.0,20901.0,0.49417167]
[1673682674751,0.14581688,20905.0,20901.0,0.49417167]
[1673682674993,0.14581688,20905.0,20901.0,0.84721582]
[1673682674994,0.089,20902.0,20901.0,0.84721582]
[1673682675233,0.089,20902.0,20901.0,0.78807167]
[1673682675465,0.089,20902.0,20901.0,1.10891467]
[1673682675945,0.0071847,20906.0,20901.0,0.927586]
[1673682676195,0.089,20905.0,20902.0,0.31574415]
[1673682676428,0.089,20905.0,20902.0,0.9635641]
[1673682676663,0.089,20905.0,20903.0,0.320843]
[1673682676904,0.089,20905.0,20904.0,0.215563]
[1673682677159,0.089,20905.0,20902.0,0.77611995]
[1673682677415,0.13823655,20906.0,20902.0,0.77611995]
[1673682677672,0.102,20905.0,20903.0,0.008]
[1673682677916,0.102,20905.0,20902.0,0.77611995]
[1673682678160,0.204,20905.0,20902.0,0.78411995]
[1673682678417,0.13823655,20906.0,20902.0,0.77611995]
[1673682678661,0.04748733,20907.0,20902.0,0.77611995]
[1673682678898,0.102,20905.0,20903.0,0.18119436]
[1673682679372,0.204,20905.0,20903.0,0.18119436]
[1673682679614,0.33821328,20907.0,20903.0,0.17319436]
[1673682679855,0.14748733,20907.0,20903.0,0.36063851]
[1673682680856,0.14748733,20907.0,20903.0,0.17319436]
[1673682681412,0.14948733,20907.0,20903.0,0.18119436]
[1673682681662,0.14948733,20907.0,20904.0,0.19752784]
[1673682683157,0.04748733,20907.0,20904.0,0.19752784]
[1673682683410,0.14948733,20907.0,20904.0,0.20552784]
[1673682684403,0.14948733,20907.0,20905.0,0.18969156]
[1673682685141,0.04748733,20907.0,20905.0,0.18969156]
[1673682685388,0.14948733,20907.0,20905.0,0.19669156]
[1673682689378,0.24948733,20907.0,20905.0,0.007]
[1673682689595,0.14948733,20907.0,20905.0,0.007]
[1673682689886,0.04358559,20906.0,20905.0,0.007]
[1673682690643,0.04358559,20906.0,20904.0,0.19555935]
[1673682691154,0.14558559,20906.0,20905.0,0.007]
[1673682691668,0.34072432,20908.0,20905.0,0.1567314]
[1673682691915,0.0085,20907.0,20906.0,0.16284015]
[1673682692165,0.52135606,20909.0,20906.0,0.16284015]
[1673682692166,0.0085,20908.0,20906.0,0.16284015]
[1673682692407,0.04309306,20909.0,20906.0,0.3502843]
[1673682692653,0.00717774,20909.0,20906.0,0.3502843]
[1673682693154,0.00717774,20909.0,20906.0,0.16284015]
[1673682693397,0.00664921,20909.0,20906.0,0.16284015]
[1673682693905,0.01564921,20909.0,20907.0,0.320843]
[1673682694147,0.01564921,20909.0,20908.0,0.215449]
[1673682694396,0.01564921,20909.0,20906.0,0.65216415]
[1673682694657,0.01564921,20909.0,20907.0,0.16692742]
[1673682695181,0.00664921,20909.0,20907.0,0.16692742]
[1673682695436,0.01464921,20909.0,20908.0,0.01]
[1673682696424,0.05563835,20909.0,20908.0,0.01]
[1673682696663,0.04763835,20909.0,20907.0,0.16692742]
[1673682697165,0.04763835,20909.0,20905.0,0.47835]
[1673682697384,0.2383643,20909.0,20906.0,0.15637836]
[1673682697623,0.04763835,20909.0,20906.0,0.15637836]
[1673682697903,0.05563835,20909.0,20907.0,0.009]
[1673682698152,0.04763835,20909.0,20906.0,0.15637836]
[1673682698404,0.05563835,20909.0,20906.0,0.15637836]
[1673682698654,0.04763835,20909.0,20906.0,0.15637836]
[1673682699386,0.05563835,20909.0,20906.0,0.16137836]
[1673682700133,0.04178171,20908.0,20906.0,0.16137836]
[1673682700362,0.04178171,20908.0,20906.0,0.005]
[1673682701063,0.04178171,20908.0,20905.0,0.15452381]
[1673682701569,0.04978171,20908.0,20906.0,0.005]
[1673682702386,0.04178171,20908.0,20905.0,0.15452381]
[1673682702660,0.04178171,20908.0,20906.0,0.15831322]
[1673682702908,0.04978171,20908.0,20906.0,0.16331322]
[1673682703158,0.04178171,20908.0,20906.0,0.15831322]
[1673682703420,0.04978171,20908.0,20906.0,0.15831322]
[1673682703665,0.04178171,20908.0,20906.0,0.15831322]
[1673682703920,0.04978171,20908.0,20906.0,0.16331322]
[1673682706683,0.30066095,20909.0,20906.0,0.16331322]
[1673682707467,0.00614122,20908.0,20906.0,0.16331322]
[1673682708680,0.00614122,20908.0,20906.0,0.15831322]
[1673682709424,0.00614122,20908.0,20906.0,0.16231322]
[1673682710666,0.14236826,20909.0,20906.0,0.16231322]
[1673682710911,0.00533285,20909.0,20907.0,0.19147728]
[1673682711173,0.14770111,20909.0,20907.0,0.19147728]
[1673682712608,0.14236826,20909.0,20907.0,0.20047728]
[1673682713329,0.24236826,20909.0,20907.0,0.20047728]
[1673682713612,0.14809613,20909.0,20907.0,0.20047728]
[1673682714380,0.36164852,20909.0,20907.0,0.20047728]
[1673682715678,0.14809613,20909.0,20907.0,0.20047728]
[1673682715906,0.36164852,20909.0,20907.0,0.20047728]
[1673682717116,0.14236826,20908.0,20907.0,0.20047728]
[1673682717860,0.14236826,20908.0,20907.0,0.19147728]
[1673682718108,0.36164852,20909.0,20907.0,0.20047728]
[1673682718347,0.12277779,20909.0,20907.0,0.20047728]
[1673682718830,0.12277779,20909.0,20907.0,0.19147728]
[1673682719304,0.28473652,20909.0,20907.0,0.20047728]
[1673682721301,0.28473652,20909.0,20907.0,0.009]
[1673682721770,0.64064705,20909.0,20907.0,0.009]
[1673682722025,0.38473652,20908.0,20907.0,0.009]
[1673682722258,1.55272148,20908.0,20907.0,0.009]
[1673682722500,1.006085,20908.0,20907.0,0.009]
[1673682722750,1.05395461,20908.0,20907.0,0.009]
[1673682723001,1.47985113,20908.0,20907.0,0.009]
[1673682723514,1.47985113,20908.0,20903.0,0.00019]
[1673682723515,1.81149327,20908.0,20903.0,0.00019]
[1673682723761,0.41413376,20905.0,20903.0,0.00019]
[1673682724007,0.1,20904.0,20903.0,0.00019]
[1673682724249,0.886877,20904.0,20903.0,0.00019]
[1673682724544,0.87271076,20904.0,20903.0,0.00019]
[1673682724807,0.478335,20906.0,20903.0,0.30832176]
[1673682724808,0.64312596,20906.0,20903.0,0.30832176]
[1673682725120,0.478309,20907.0,20903.0,0.30832176]
[1673682725121,0.64312596,20907.0,20904.0,0.16567204]
[1673682725306,0.64312596,20907.0,20904.0,0.35311619]
[1673682725564,0.64312596,20908.0,20904.0,0.35311619]
[1673682725807,0.28583376,20907.0,20902.0,0.14238431]
[1673682726049,0.28583376,20907.0,20902.0,0.19840034]
[1673682726050,0.29054858,20906.0,20902.0,0.19840034]
[1673682726366,0.29054858,20906.0,20903.0,0.114]
[1673682726576,0.64312596,20907.0,20903.0,0.114]
[1673682726810,0.64312596,20907.0,20903.0,0.30144415]
[1673682727321,0.5002461,20907.0,20904.0,0.22844415]
[1673682727578,0.21441234,20908.0,20904.0,0.31574415]
[1673682728316,0.14292161,20907.0,20904.0,0.1693]
[1673682728558,0.14292161,20907.0,20904.0,0.606665]
[1673682728803,0.14292161,20907.0,20905.0,0.15961633]
[1673682729035,0.35733395,20908.0,20905.0,0.15961633]
[1673682729525,0.14292161,20907.0,20905.0,0.15961633]
[1673682731229,0.40429737,20908.0,20905.0,0.15961633]
[1673682731712,0.11846361,20908.0,20905.0,0.15961633]
[1673682732435,0.11846361,20908.0,20905.0,0.66579715]
[1673682732676,2.61021862,20910.0,20906.0,0.46322731]
[1673682732894,0.00771862,20910.0,20907.0,0.88122615]
[1673682733154,0.00771862,20910.0,20907.0,0.66574915]
[1673682733418,0.00771862,20910.0,20908.0,0.320843]
[1673682733659,0.00771862,20910.0,20909.0,0.21542]
[1673682733908,0.00771862,20910.0,20908.0,0.478276]
[1673682734146,0.00771862,20910.0,20909.0,0.1806353]
[1673682735670,0.00771862,20910.0,20909.0,0.478262]
[1673682735927,0.00771862,20910.0,20909.0,1.60305084]
[1673682736183,0.00771862,20910.0,20909.0,1.657991]
[1673682736444,0.00771862,20910.0,20909.0,1.51560669]
[1673682736683,0.00771862,20910.0,20909.0,0.95967265]
[1673682736963,0.00771862,20910.0,20909.0,1.07367265]
[1673682737430,0.00771862,20910.0,20909.0,0.95967265]
[1673682737714,0.00771862,20910.0,20909.0,0.938105]
[1673682737943,0.00771862,20910.0,20909.0,1.73139576]
[1673682738196,0.00771862,20910.0,20909.0,1.68633592]
[1673682738437,0.00771862,20910.0,20909.0,1.54733592]
[1673682738683,0.00771862,20910.0,20909.0,2.02920631]
[1673682738943,0.00771862,20910.0,20909.0,1.78833592]
[1673682739191,0.00771862,20910.0,20909.0,1.86570772]
[1673682739459,0.00771862,20910.0,20909.0,1.40495161]
[1673682739700,0.00771862,20910.0,20909.0,1.68633592]
[1673682739953,0.00771862,20910.0,20909.0,1.78633592]
[1673682740479,0.00771862,20910.0,20909.0,1.86090631]
[1673682740766,0.00771862,20910.0,20909.0,2.018522]
[1673682740998,0.00771862,20910.0,20909.0,2.30327644]
[1673682741244,0.00771862,20910.0,20909.0,2.08970605]
[1673682741504,0.00771862,20910.0,20909.0,2.16224722]
[1673682741740,0.00771862,20910.0,20909.0,2.01932861]
[1673682742002,0.00771862,20910.0,20909.0,2.57138305]
[1673682742242,0.00771862,20910.0,20909.0,2.42817486]
[1673682742493,0.5337168,20911.0,20910.0,0.1]
[1673682742741,0.5337168,20911.0,20910.0,2.8058049]
[1673682743002,0.02475666,20911.0,20910.0,3.10038609]
[1673682743258,0.02475666,20911.0,20910.0,3.100187]
[1673682743505,0.02475666,20911.0,20910.0,3.239187]
[1673682744240,0.14231487,20918.0,20910.0,2.88202436]
[1673682744493,0.33304082,20918.0,20911.0,1.08545484]
[1673682744738,0.19072595,20918.0,20913.0,0.956338]
[1673682744987,0.15488302,20919.0,20914.0,0.50820515]
[1673682745233,0.16951716,20918.0,20915.0,0.18744415]
[1673682745527,0.16951716,20918.0,20915.0,0.66556615]
[1673682745782,0.00487658,20919.0,20915.0,0.66556615]
[1673682746268,0.00487658,20919.0,20915.0,1.14276784]
[1673682746514,0.00861001,20917.0,20915.0,1.24276784]
[1673682746760,0.00861001,20917.0,20916.0,0.47998066]
[1673682747002,0.00861001,20917.0,20916.0,0.798945]
[1673682747250,0.00861001,20917.0,20916.0,1.40404669]
[1673682747992,0.00861001,20917.0,20916.0,0.47591874]
[1673682748239,0.00861001,20917.0,20916.0,0.47626355]
[1673682748484,0.00861001,20917.0,20916.0,0.47591874]
[1673682748739,0.00861001,20917.0,20916.0,0.15907574]
[1673682749233,0.00861001,20917.0,20916.0,0.004]
[1673682749481,0.28254044,20917.0,20916.0,0.004]
[1673682750468,0.58254044,20917.0,20916.0,0.004]
[1673682750956,1.17685531,20917.0,20916.0,0.004]
[1673682751449,1.05524996,20917.0,20916.0,0.004]
[1673682751703,1.32569855,20917.0,20916.0,0.004]
[1673682752194,1.80637375,20917.0,20916.0,0.004]
[1673682752453,0.1,20916.0,20910.0,0.17859638]
[1673682752681,0.128,20913.0,20908.0,0.17508186]
[1673682752924,0.19072595,20912.0,20909.0,0.17386367]
[1673682753423,0.18572595,20912.0,20909.0,0.17386367]
[1673682753662,0.18572595,20912.0,20906.0,0.47851]
[1673682753902,0.18572595,20911.0,20908.0,0.14719585]
[1673682754392,0.1,20911.0,20908.0,0.28619585]
[1673682754644,0.1,20911.0,20908.0,0.14719585]
[1673682754894,0.2275,20911.0,20906.0,0.47851]
[1673682755126,0.3372913,20910.0,20908.0,0.139]
[1673682755475,0.15156535,20910.0,20908.0,0.139]
[1673682755672,0.45156535,20910.0,20906.0,0.15811432]
[1673682755943,0.6372913,20910.0,20906.0,0.29611432]
[1673682756144,0.6372913,20910.0,20906.0,0.15811432]
[1673682756621,0.15156535,20910.0,20906.0,0.15811432]
[1673682756892,0.15156535,20910.0,20906.0,0.34884027]
[1673682757125,0.15156535,20910.0,20908.0,0.139]
[1673682757373,0.15156535,20910.0,20906.0,0.15811432]
[1673682757613,0.15156535,20910.0,20907.0,0.18987884]
[1673682757614,0.3372913,20910.0,20907.0,0.18987884]
[1673682757846,0.15156535,20910.0,20907.0,0.18987884]
[1673682758086,0.15156535,20910.0,20908.0,0.139]
[1673682758342,0.15156535,20910.0,20907.0,0.18987884]
[1673682758845,0.15156535,20910.0,20907.0,0.139]
[1673682759087,0.15156535,20910.0,20905.0,0.15763302]
[1673682759337,0.478243,20910.0,20905.0,0.15763302]
[1673682759575,0.1,20909.0,20905.0,0.34835897]
[1673682759840,0.18572595,20909.0,20905.0,0.15763302]
[1673682760315,0.18028113,20908.0,20906.0,0.18741336]
[1673682761083,0.2393737,20910.0,20906.0,0.18741336]
[1673682761338,0.18495707,20910.0,20906.0,0.37813931]
[1673682762329,0.18495707,20910.0,20906.0,0.51613931]
[1673682762575,0.18495707,20910.0,20906.0,0.32541336]
[1673682763090,0.18495707,20910.0,20907.0,0.14390268]
[1673682764592,0.18495707,20910.0,20907.0,0.28290268]
[1673682766325,0.18495707,20910.0,20907.0,0.139]
[1673682766576,0.58495707,20910.0,20907.0,0.139]
[1673682766807,0.18495707,20910.0,20907.0,0.139]
[1673682767549,0.1,20909.0,20907.0,0.139]
[1673682768315,0.74994037,20910.0,20907.0,0.139]
[1673682768588,0.46955136,20909.0,20907.0,0.139]
[1673682769068,0.16955136,20909.0,20907.0,0.139]
[1673682769320,0.16955136,20909.0,20905.0,0.16237618]
[1673682769564,0.35527731,20909.0,20907.0,0.139]
[1673682769820,0.60572,20911.0,20907.0,0.29088295]
[1673682770074,0.17602646,20911.0,20908.0,0.34444572]
[1673682770883,0.17602646,20911.0,20908.0,0.15371977]
[1673682772237,0.17602646,20911.0,20908.0,0.29271977]
[1673682772742,0.17602646,20911.0,20908.0,0.139]
[1673682772988,0.87396773,20912.0,20908.0,0.139]
[1673682773492,0.31292595,20911.0,20908.0,0.139]
[1673682773763,0.1275,20909.0,20908.0,0.139]
[1673682774004,0.1275,20909.0,20905.0,0.00019]
[1673682774005,0.45987876,20909.0,20905.0,0.00019]
[1673682774256,0.1283,20907.0,20905.0,0.00019]
[1673682774526,0.31402595,20907.0,20904.0,0.17705742]
[1673682775287,0.1283,20907.0,20904.0,0.17705742]
[1673682775535,0.1283,20907.0,20905.0,0.045]
[1673682775831,0.1283,20907.0,20904.0,0.17705742]
[1673682776045,0.1293,20907.0,20905.0,0.14771613]
[1673682776301,0.1283,20907.0,20905.0,0.14771613]
[1673682776556,0.29768711,20907.0,20905.0,0.19271613]
[1673682776800,0.29768711,20907.0,20905.0,0.045]
[1673682777080,0.14541189,20906.0,20905.0,0.045]
[1673682777548,0.14541189,20906.0,20905.0,0.04534499]
[1673682777804,0.14541189,20906.0,20905.0,0.045]
[1673682778341,0.14541189,20906.0,20903.0,0.15061889]
[1673682778555,0.14541189,20906.0,20905.0,0.045]
[1673682780566,0.13904316,20906.0,20905.0,0.045]
[1673682781301,0.43904316,20906.0,20905.0,0.045]
[1673682781553,0.13904316,20906.0,20905.0,0.045]
[1673682783607,0.1283,20907.0,20905.0,0.23572595]
[1673682783868,0.1272,20910.0,20906.0,0.320843]
[1673682783869,0.15361653,20910.0,20906.0,0.320843]
[1673682784124,0.15361653,20910.0,20907.0,0.51156895]
[1673682784380,0.15361653,20910.0,20908.0,0.40617395]
[1673682784626,0.82357666,20914.0,20908.0,0.66900695]
[1673682784627,0.478158,20914.0,20908.0,0.66900695]
[1673682784886,0.15795228,20910.0,20909.0,0.19072595]
[1673682785149,0.15795228,20910.0,20909.0,0.00034492]
[1673682785415,0.15795228,20910.0,20909.0,0.08319492]
[1673682785972,0.12150253,20913.0,20909.0,0.08319492]
[1673682786179,0.62097666,20914.0,20909.0,0.27392087]
[1673682786478,0.486673,20913.0,20909.0,0.33172595]
[1673682786720,0.63009098,20913.0,20909.0,0.28468575]
[1673682786972,0.14341798,20913.0,20909.0,0.4754117]
[1673682787243,0.28623664,20913.0,20909.0,0.14368575]
[1673682787503,0.58623664,20913.0,20909.0,0.28468575]
[1673682787768,0.77196259,20913.0,20909.0,0.14368575]
[1673682788016,0.58623664,20913.0,20909.0,0.28468575]
[1673682788751,0.58623664,20913.0,20909.0,0.28064624]
[1673682789001,0.29395415,20912.0,20909.0,0.27955522]
[1673682789249,0.50818262,20912.0,20909.0,0.27955522]
[1673682789497,0.50818262,20912.0,20909.0,0.141]
[1673682789991,0.14281866,20911.0,20909.0,0.141]
[1673682790488,0.50818262,20912.0,20908.0,0.17397078]
[1673682790757,0.14281866,20911.0,20909.0,0.141]
[1673682791000,0.14281866,20911.0,20908.0,0.17397078]
[1673682791001,0.50818262,20912.0,20908.0,0.17397078]
[1673682791255,0.50818262,20912.0,20909.0,0.141]
[1673682791508,0.13686735,20911.0,20909.0,0.141]
[1673682791771,0.13686735,20911.0,20909.0,0.2925071]
[1673682792023,0.13686735,20911.0,20909.0,0.1515071]
[1673682793587,0.13686735,20911.0,20909.0,0.2925071]
[1673682796227,0.13686735,20911.0,20909.0,0.28740556]
[1673682796980,0.14281866,20912.0,20909.0,0.28740556]
[1673682797236,0.29041277,20912.0,20909.0,0.28740556]
[1673682797722,0.29041277,20912.0,20909.0,0.14640556]
[1673682797970,0.14759411,20912.0,20909.0,0.14640556]
[1673682798204,0.14759411,20912.0,20910.0,0.15799519]
[1673682799202,0.07492945,20913.0,20910.0,0.15799519]
[1673682799430,0.02036843,20912.0,20910.0,0.15799519]
[1673682799921,0.2345969,20912.0,20910.0,0.109]
[1673682800174,0.71372595,20911.0,20910.0,0.109]
[1673682800435,1.64934296,20911.0,20910.0,0.218]
[1673682800674,1.33992037,20911.0,20910.0,0.218]
[1673682800924,1.41137881,20911.0,20906.0,0.17958208]
[1673682801171,0.68569155,20910.0,20906.0,0.17958208]
[1673682801419,0.3,20909.0,20906.0,0.17958208]
[1673682801678,0.48572595,20909.0,20906.0,0.17958208]
[1673682801898,1.17826592,20909.0,20906.0,0.17958208]
[1673682802161,0.12372524,20908.0,20904.0,0.1811363]
[1673682802389,0.30945119,20908.0,20904.0,0.1811363]
[1673682802879,0.3,20907.0,20904.0,0.1811363]
[1673682803110,0.50201224,20908.0,20906.0,0.139]
[1673682803352,0.50201224,20908.0,20904.0,0.1811363]
[1673682803610,0.3,20907.0,20904.0,0.3201363]
[1673682803851,0.3,20907.0,20904.0,0.1811363]
[1673682804111,0.3,20907.0,20904.0,0.3201363]
[1673682804349,0.90200916,20908.0,20904.0,0.1811363]
[1673682804624,0.50201224,20908.0,20904.0,0.37186225]
[1673682804860,0.02181449,20907.0,20904.0,0.1811363]
[1673682805102,0.12181449,20907.0,20904.0,0.1811363]
[1673682805363,0.32181449,20907.0,20904.0,0.3201363]
[1673682806073,0.32181449,20907.0,20904.0,0.1811363]
[1673682806360,0.32181449,20907.0,20904.0,0.3201363]
[1673682806850,0.02181449,20907.0,20904.0,0.3201363]
[1673682809775,0.32181449,20907.0,20904.0,0.3201363]
[1673682810022,0.02206493,20906.0,20904.0,0.3201363]
[1673682810531,0.02206493,20906.0,20904.0,0.139]
[1673682811285,0.02206493,20906.0,20903.0,0.17733617]
[1673682811540,0.02206493,20906.0,20904.0,0.139]
[1673682812264,0.26150649,20907.0,20904.0,0.139]
[1673682812789,0.3,20906.0,20904.0,0.139]
[1673682814343,0.3,20906.0,20903.0,0.19446664]
[1673682814580,0.26250649,20907.0,20904.0,0.138]
[1673682814823,0.26150649,20907.0,20903.0,0.19446664]